[Event "Titled Tuesday Blitz May 23 Early 2023"]
[White "Rodchenkov, Sergey D."]
[Black "koncheto"]
[WhiteFideId "4168712"]
[WhiteElo "2277"]
[BlackElo "2613"]
[Result "0-1"]
[Round "09"]
[TimeControl "180+2"]
[Date "2023.05.23"]
[WhiteClock "0:00:12"]
[BlackClock "0:00:07"]

1. e4 {[%clk 0:03:00]}  e5 {[%clk 0:02:23]} 2. Nf3 {[%clk 0:03:00]}  Nf6 {[%clk 0:02:23]} 3. d4 {[%clk 0:02:59]}  Nxe4 {[%clk 0:02:22]} 4. Bd3 {[%clk 0:03:00]}  d5 {[%clk 0:02:20]} 5. Nxe5 {[%clk 0:02:59]}  Bd6 {[%clk 0:02:17]} 6. O-O {[%clk 0:02:58]}  O-O {[%clk 0:02:17]} 7. c4 {[%clk 0:02:58]}  c6 {[%clk 0:02:12]} 8. Nc3 {[%clk 0:02:59]}  Nxc3 {[%clk 0:02:03]} 9. bxc3 {[%clk 0:02:59]}  Bxe5 {[%clk 0:02:03]} 10. dxe5 {[%clk 0:02:56]}  Nd7 {[%clk 0:01:44]} 11. f4 {[%clk 0:02:21]}  Nc5 {[%clk 0:01:18]} 12. Bc2 {[%clk 0:01:55]}  dxc4 {[%clk 0:01:12]} 13. Ba3 {[%clk 0:01:50]}  Qb6 {[%clk 0:01:12]} 14. Qd4 {[%clk 0:01:38]}  Ne6 {[%clk 0:01:04]} 15. Qxb6 {[%clk 0:01:38]}  axb6 {[%clk 0:01:04]} 16. Bxf8 {[%clk 0:01:39]}  Kxf8 {[%clk 0:01:05]} 17. a4 {[%clk 0:01:24]}  Nc5 {[%clk 0:01:03]} 18. Rad1 {[%clk 0:01:24]}  Ke7 {[%clk 0:01:01]} 19. f5 {[%clk 0:01:24]}  g6 {[%clk 0:00:54]} 20. f6+ {[%clk 0:01:19]}  Ke8 {[%clk 0:00:51]} 21. Rd4 {[%clk 0:01:03]}  Be6 {[%clk 0:00:51]} 22. Rfd1 {[%clk 0:01:02]}  Nd7 {[%clk 0:00:51]} 23. Re4 {[%clk 0:00:54]}  Ra5 {[%clk 0:00:49]} 24. Rde1 {[%clk 0:00:49]}  b5 {[%clk 0:00:16]} 25. Rh4 {[%clk 0:00:48]}  h5 {[%clk 0:00:14]} 26. g4 {[%clk 0:00:37]}  Bxg4 {[%clk 0:00:11]} 27. e6 {[%clk 0:00:36]}  Bxe6 {[%clk 0:00:10]} 28. Bxg6 {[%clk 0:00:37]}  Kd8 {[%clk 0:00:03]} 29. Rd4 {[%clk 0:00:17]}  Kc7 {[%clk 0:00:03]} 30. Bxf7 {[%clk 0:00:12]}  Bxf7 {[%clk 0:00:03]} 31. Re7 {[%clk 0:00:12]}  Bd5 {[%clk 0:00:02]} 32. f7 {[%clk 0:00:12]}  Ra8 {[%clk 0:00:02]} 33. axb5 {[%clk 0:00:06]}  Rf8 {[%clk 0:00:01]} 34. Rf4 {[%clk 0:00:03]}  Kd6 {[%clk 0:00:01]} 35. Re3 {[%clk 0:00:02]}  Rxf7 {[%clk 0:00:01]} 36. Rh4 {[%clk 0:00:03]}  Rg7+ {[%clk 0:00:01]} 37. Kf2 {[%clk 0:00:03]}  Rg5 {[%clk 0:00:02]} 38. Rf4 {[%clk 0:00:02]}  Ne5 {[%clk 0:00:02]} 39. Rf6+ {[%clk 0:00:03]}  Kc5 {[%clk 0:00:02]} 40. h4 {[%clk 0:00:04]}  Nd3+ {[%clk 0:00:03]} 41. Rxd3 {[%clk 0:00:04]}  Rg2+ {[%clk 0:00:03]} 42. Ke3 {[%clk 0:00:04]}  cxd3 {[%clk 0:00:04]} 43. Kxd3 {[%clk 0:00:05]}  cxb5 {[%clk 0:00:04]} 44. Rf5 {[%clk 0:00:05]}  Rg3+ {[%clk 0:00:04]} 45. Kc2 {[%clk 0:00:05]}  Kc4 {[%clk 0:00:02]} 46. Rf4+ {[%clk 0:00:06]}  Kc5 {[%clk 0:00:02]} 47. Rf5 {[%clk 0:00:07]}  Rg2+ {[%clk 0:00:02]} 48. Kd3 {[%clk 0:00:07]}  Kd6 {[%clk 0:00:02]} 49. Rxh5 {[%clk 0:00:08]}  b6 {[%clk 0:00:02]} 50. Rh6+ {[%clk 0:00:09]}  Kc5 {[%clk 0:00:02]} 51. h5 {[%clk 0:00:10]}  Rh2 {[%clk 0:00:03]} 52. Rh8 {[%clk 0:00:10]}  Bc4+ {[%clk 0:00:03]} 53. Ke3 {[%clk 0:00:10]}  b4 {[%clk 0:00:03]} 54. Rc8+ {[%clk 0:00:09]}  Kb5 {[%clk 0:00:04]} 55. cxb4 {[%clk 0:00:10]}  Kxb4 {[%clk 0:00:05]} 56. Rb8 {[%clk 0:00:11]}  b5 {[%clk 0:00:06]} 57. Rb6 {[%clk 0:00:11]}  Rxh5 {[%clk 0:00:06]} 58. Kd4 {[%clk 0:00:12]}  Rh4+ {[%clk 0:00:06]} 59. Ke3 {[%clk 0:00:13]}  Rh7 {[%clk 0:00:07]} 60. Rh6 {[%clk 0:00:13]}  Rc7 {[%clk 0:00:07]} 61. Rh7 {[%clk 0:00:12]}  Rxh7 {[%clk 0:00:07]} 0-1


[Site "https://www.chess.com"]

[Event "Titled Tuesday Blitz May 23 Early 2023"]
[White "Garakov, Mikhael"]
[Black "Filgueira, Hernan"]
[WhiteFideId "4169034"]
[BlackFideId "101770"]
[WhiteElo "2347"]
[BlackElo "2363"]
[Result "1/2-1/2"]
[Round "09"]
[TimeControl "180+2"]
[Date "2023.05.23"]
[WhiteClock "0:00:10"]
[BlackClock "0:00:19"]

1. e4 {[%clk 0:03:00]}  d6 {[%clk 0:02:59]} 2. d4 {[%clk 0:03:00]}  Nf6 {[%clk 0:03:00]} 3. Nc3 {[%clk 0:03:00]}  e5 {[%clk 0:03:00]} 4. Nge2 {[%clk 0:02:57]}  Nbd7 {[%clk 0:03:00]} 5. g3 {[%clk 0:02:57]}  g6 {[%clk 0:02:59]} 6. Bg2 {[%clk 0:02:57]}  Bg7 {[%clk 0:03:00]} 7. O-O {[%clk 0:02:57]}  O-O {[%clk 0:03:00]} 8. h3 {[%clk 0:02:56]}  c6 {[%clk 0:02:57]} 9. a4 {[%clk 0:02:56]}  a5 {[%clk 0:02:56]} 10. f4 {[%clk 0:02:55]}  b6 {[%clk 0:02:55]} 11. Kh2 {[%clk 0:02:47]}  Ba6 {[%clk 0:02:55]} 12. dxe5 {[%clk 0:02:43]}  dxe5 {[%clk 0:02:54]} 13. f5 {[%clk 0:02:43]}  h5 {[%clk 0:02:52]} 14. Bg5 {[%clk 0:02:42]}  Qc7 {[%clk 0:02:51]} 15. Qd2 {[%clk 0:02:31]}  Nc5 {[%clk 0:02:25]} 16. Bh6 {[%clk 0:02:28]}  Rad8 {[%clk 0:02:22]} 17. Qg5 {[%clk 0:02:24]}  Nh7 {[%clk 0:02:21]} 18. Qe3 {[%clk 0:02:24]}  Qe7 {[%clk 0:02:11]} 19. Rf2 {[%clk 0:02:13]}  Bxh6 {[%clk 0:02:10]} 20. Qxh6 {[%clk 0:02:13]}  Qg5 {[%clk 0:02:11]} 21. Qxg5 {[%clk 0:02:09]}  Nxg5 {[%clk 0:02:10]} 22. h4 {[%clk 0:01:20]}  Nh7 {[%clk 0:02:10]} 23. Raf1 {[%clk 0:01:02]}  Rd2 {[%clk 0:02:05]} 24. Ng1 {[%clk 0:00:46]}  Rfd8 {[%clk 0:01:54]} 25. Rxd2 {[%clk 0:00:36]}  Rxd2 {[%clk 0:01:54]} 26. Rd1 {[%clk 0:00:35]}  Rxc2 {[%clk 0:01:48]} 27. fxg6 {[%clk 0:00:31]}  fxg6 {[%clk 0:01:48]} 28. Nf3 {[%clk 0:00:27]}  Nd3 {[%clk 0:01:37]} 29. Kg1 {[%clk 0:00:22]}  Nf6 {[%clk 0:01:28]} 30. Bf1 {[%clk 0:00:20]}  Nxb2 {[%clk 0:00:52]} 31. Rd8+ {[%clk 0:00:20]}  Kg7 {[%clk 0:00:51]} 32. Bxa6 {[%clk 0:00:18]}  Rxc3 {[%clk 0:00:51]} 33. Nxe5 {[%clk 0:00:18]}  Rxg3+ {[%clk 0:00:48]} 34. Kh2 {[%clk 0:00:19]}  Re3 {[%clk 0:00:42]} 35. Nxc6 {[%clk 0:00:18]}  Ng4+ {[%clk 0:00:40]} 36. Kg2 {[%clk 0:00:18]}  Rxe4 {[%clk 0:00:39]} 37. Rd7+ {[%clk 0:00:18]}  Kf6 {[%clk 0:00:38]} 38. Rd6+ {[%clk 0:00:18]}  Re6 {[%clk 0:00:36]} 39. Rxe6+ {[%clk 0:00:15]}  Kxe6 {[%clk 0:00:36]} 40. Kg3 {[%clk 0:00:13]}  Nxa4 {[%clk 0:00:35]} 41. Kf4 {[%clk 0:00:11]}  Kf6 {[%clk 0:00:34]} 42. Nd4 {[%clk 0:00:08]}  Nc5 {[%clk 0:00:34]} 43. Bc8 {[%clk 0:00:06]}  Nd3+ {[%clk 0:00:33]} 44. Ke4 {[%clk 0:00:06]}  Ngf2+ {[%clk 0:00:26]} 45. Ke3 {[%clk 0:00:06]}  a4 {[%clk 0:00:26]} 46. Ba6 {[%clk 0:00:06]}  a3 {[%clk 0:00:24]} 47. Bxd3 {[%clk 0:00:05]}  Nxd3 {[%clk 0:00:24]} 48. Kxd3 {[%clk 0:00:06]}  a2 {[%clk 0:00:22]} 49. Nb3 {[%clk 0:00:06]}  g5 {[%clk 0:00:22]} 50. hxg5+ {[%clk 0:00:06]}  Kxg5 {[%clk 0:00:22]} 51. Kc2 {[%clk 0:00:06]}  h4 {[%clk 0:00:23]} 52. Kb2 {[%clk 0:00:07]}  h3 {[%clk 0:00:23]} 53. Nd2 {[%clk 0:00:06]}  Kf4 {[%clk 0:00:20]} 54. Nf1 {[%clk 0:00:06]}  Kf3 {[%clk 0:00:20]} 55. Kxa2 {[%clk 0:00:07]}  Kg2 {[%clk 0:00:20]} 56. Ne3+ {[%clk 0:00:06]}  Kf2 {[%clk 0:00:20]} 57. Ng4+ {[%clk 0:00:06]}  Kg3 {[%clk 0:00:20]} 58. Ne3 {[%clk 0:00:07]}  Kf3 {[%clk 0:00:20]} 59. Nf1 {[%clk 0:00:07]}  Ke2 {[%clk 0:00:19]} 60. Nh2 {[%clk 0:00:07]}  Kd3 {[%clk 0:00:19]} 61. Kb3 {[%clk 0:00:07]}  Kd4 {[%clk 0:00:19]} 62. Kb4 {[%clk 0:00:08]}  Ke5 {[%clk 0:00:17]} 63. Kb5 {[%clk 0:00:08]}  Kf4 {[%clk 0:00:17]} 64. Kxb6 {[%clk 0:00:08]}  Kg3 {[%clk 0:00:18]} 65. Nf1+ {[%clk 0:00:09]}  Kf2 {[%clk 0:00:18]} 66. Nh2 {[%clk 0:00:09]}  Kg1 {[%clk 0:00:18]} 67. Ng4 {[%clk 0:00:09]}  Kg2 {[%clk 0:00:18]} 68. Kc5 {[%clk 0:00:08]}  Kg3 {[%clk 0:00:18]} 69. Ne3 {[%clk 0:00:08]}  Kf4 {[%clk 0:00:18]} 70. Nf1 {[%clk 0:00:08]}  Kf3 {[%clk 0:00:18]} 71. Kd4 {[%clk 0:00:08]}  Kg2 {[%clk 0:00:19]} 72. Ne3+ {[%clk 0:00:08]}  Kf2 {[%clk 0:00:18]} 73. Ng4+ {[%clk 0:00:08]}  Kg3 {[%clk 0:00:18]} 74. Ne3 {[%clk 0:00:09]}  h2 {[%clk 0:00:18]} 75. Nf1+ {[%clk 0:00:09]}  Kg2 {[%clk 0:00:19]} 76. Nxh2 {[%clk 0:00:10]} 1/2-1/2


[Site "https://www.chess.com"]

[Event "Titled Tuesday Blitz May 23 Early 2023"]
[White "Castellanos Gomez, Alejandro"]
[Black "Miranda, Rafael"]
[WhiteFideId "22284141"]
[BlackFideId "130990"]
[WhiteElo "2158"]
[BlackElo "2204"]
[Result "1-0"]
[Round "09"]
[TimeControl "180+2"]
[Date "2023.05.23"]
[WhiteClock "0:00:23"]
[BlackClock "0:01:02"]

1. d4 {[%clk 0:03:00]}  Nf6 {[%clk 0:02:58]} 2. Bf4 {[%clk 0:03:01]}  g6 {[%clk 0:02:58]} 3. Nc3 {[%clk 0:03:01]}  d5 {[%clk 0:02:58]} 4. Qd2 {[%clk 0:03:01]}  Bg7 {[%clk 0:02:57]} 5. Bh6 {[%clk 0:03:02]}  O-O {[%clk 0:02:53]} 6. O-O-O {[%clk 0:02:58]}  c6 {[%clk 0:02:51]} 7. f3 {[%clk 0:02:54]}  Nbd7 {[%clk 0:02:49]} 8. h4 {[%clk 0:02:54]}  e5 {[%clk 0:02:50]} 9. h5 {[%clk 0:02:45]}  exd4 {[%clk 0:02:47]} 10. Bxg7 {[%clk 0:02:30]}  Kxg7 {[%clk 0:02:31]} 11. Qxd4 {[%clk 0:02:26]}  Qb6 {[%clk 0:02:32]} 12. Qh4 {[%clk 0:02:20]}  Qe3+ {[%clk 0:02:21]} 13. Kb1 {[%clk 0:02:20]}  Nb6 {[%clk 0:02:20]} 14. Rd3 {[%clk 0:02:00]}  Qe7 {[%clk 0:02:13]} 15. g4 {[%clk 0:01:38]}  Bd7 {[%clk 0:01:45]} 16. Re3 {[%clk 0:01:31]}  Qd8 {[%clk 0:01:36]} 17. hxg6 {[%clk 0:01:14]}  fxg6 {[%clk 0:01:36]} 18. Qh6+ {[%clk 0:01:13]}  Kg8 {[%clk 0:01:36]} 19. g5 {[%clk 0:00:47]}  d4 {[%clk 0:01:18]} 20. gxf6 {[%clk 0:00:40]}  Rf7 {[%clk 0:01:17]} 21. Re7 {[%clk 0:00:34]}  Rxe7 {[%clk 0:01:12]} 22. fxe7 {[%clk 0:00:34]}  Qxe7 {[%clk 0:01:13]} 23. Ne4 {[%clk 0:00:34]}  Nd5 {[%clk 0:01:11]} 24. Ng5 {[%clk 0:00:29]}  Bf5 {[%clk 0:01:05]} 25. Qxh7+ {[%clk 0:00:26]}  Qxh7 {[%clk 0:01:05]} 26. Rxh7 {[%clk 0:00:25]}  Ne3 {[%clk 0:01:04]} 27. Bh3 {[%clk 0:00:22]}  Bxc2+ {[%clk 0:01:04]} 28. Kc1 {[%clk 0:00:22]}  b5 {[%clk 0:01:03]} 29. Be6+ {[%clk 0:00:22]}  Kf8 {[%clk 0:01:04]} 30. Rh8+ {[%clk 0:00:23]}  Ke7 {[%clk 0:01:02]} 31. Rxa8 {[%clk 0:00:23]} 1-0


[Site "https://www.chess.com"]

[Event "Titled Tuesday Blitz May 23 Early 2023"]
[White "Danielyan, Vahe"]
[Black "Bilan, Danila"]
[WhiteFideId "13304828"]
[BlackFideId "24161918"]
[WhiteElo "2423"]
[BlackElo "2182"]
[Result "1-0"]
[Round "09"]
[TimeControl "180+2"]
[Date "2023.05.23"]
[WhiteClock "0:02:02"]
[BlackClock "0:00:48"]

1. d4 {[%clk 0:03:00]}  d5 {[%clk 0:02:58]} 2. c4 {[%clk 0:03:00]}  c6 {[%clk 0:02:58]} 3. Nc3 {[%clk 0:03:00]}  Nf6 {[%clk 0:02:58]} 4. Nf3 {[%clk 0:03:01]}  e6 {[%clk 0:02:58]} 5. Bg5 {[%clk 0:03:00]}  Nbd7 {[%clk 0:02:58]} 6. cxd5 {[%clk 0:02:57]}  exd5 {[%clk 0:02:58]} 7. e3 {[%clk 0:02:57]}  Be7 {[%clk 0:02:59]} 8. Bd3 {[%clk 0:02:56]}  O-O {[%clk 0:03:00]} 9. Qc2 {[%clk 0:02:55]}  Re8 {[%clk 0:03:00]} 10. O-O {[%clk 0:02:50]}  Nf8 {[%clk 0:03:00]} 11. h3 {[%clk 0:02:47]}  Ng6 {[%clk 0:02:56]} 12. Ne5 {[%clk 0:02:44]}  Nd7 {[%clk 0:02:31]} 13. Bxe7 {[%clk 0:02:41]}  Qxe7 {[%clk 0:02:29]} 14. f4 {[%clk 0:02:41]}  Ndf8 {[%clk 0:02:01]} 15. Rae1 {[%clk 0:02:32]}  f6 {[%clk 0:01:20]} 16. Nxg6 {[%clk 0:02:31]}  hxg6 {[%clk 0:01:13]} 17. Bxg6 {[%clk 0:02:30]}  Nxg6 {[%clk 0:01:10]} 18. Qxg6 {[%clk 0:02:31]}  Be6 {[%clk 0:01:08]} 19. Qc2 {[%clk 0:02:27]}  c5 {[%clk 0:01:04]} 20. Qd2 {[%clk 0:02:19]}  Rad8 {[%clk 0:01:01]} 21. dxc5 {[%clk 0:02:16]}  Qxc5 {[%clk 0:01:02]} 22. Qd4 {[%clk 0:02:16]}  b6 {[%clk 0:00:57]} 23. Rd1 {[%clk 0:02:13]}  Bf7 {[%clk 0:00:56]} 24. Kf2 {[%clk 0:02:05]}  Re7 {[%clk 0:00:49]} 25. Rd2 {[%clk 0:02:05]}  b5 {[%clk 0:00:48]} 26. Qxc5 {[%clk 0:02:02]} 1-0


[Site "https://www.chess.com"]

[Event "Titled Tuesday Blitz May 23 Early 2023"]
[White "GMFYHR1"]
[Black "Shevtchenko, Olesya"]
[BlackFideId "24131890"]
[WhiteElo "2434"]
[BlackElo "2003"]
[Result "0-1"]
[Round "09"]
[TimeControl "180+2"]
[Date "2023.05.23"]
[WhiteClock "0:00:18"]
[BlackClock "0:00:37"]

1. e4 {[%clk 0:03:00]}  c6 {[%clk 0:02:56]} 2. d4 {[%clk 0:03:01]}  d5 {[%clk 0:02:57]} 3. e5 {[%clk 0:03:01]}  Bf5 {[%clk 0:02:56]} 4. Nf3 {[%clk 0:03:02]}  e6 {[%clk 0:02:55]} 5. Be2 {[%clk 0:03:03]}  c5 {[%clk 0:02:55]} 6. O-O {[%clk 0:03:03]}  Qb6 {[%clk 0:02:56]} 7. c3 {[%clk 0:03:02]}  Nc6 {[%clk 0:02:56]} 8. dxc5 {[%clk 0:02:56]}  Bxc5 {[%clk 0:02:56]} 9. b4 {[%clk 0:02:57]}  Be7 {[%clk 0:02:54]} 10. Qa4 {[%clk 0:02:58]}  Nh6 {[%clk 0:02:51]} 11. b5 {[%clk 0:02:41]}  Na5 {[%clk 0:02:45]} 12. Be3 {[%clk 0:02:41]}  Qd8 {[%clk 0:02:46]} 13. b6+ {[%clk 0:02:38]}  Nc6 {[%clk 0:02:46]} 14. bxa7 {[%clk 0:02:34]}  O-O {[%clk 0:02:45]} 15. Bb5 {[%clk 0:02:31]}  Ng4 {[%clk 0:02:42]} 16. Bxc6 {[%clk 0:02:28]}  Nxe3 {[%clk 0:02:35]} 17. fxe3 {[%clk 0:02:10]}  bxc6 {[%clk 0:02:34]} 18. Nd4 {[%clk 0:02:11]}  Bd3 {[%clk 0:02:07]} 19. Nxc6 {[%clk 0:02:06]}  Qe8 {[%clk 0:02:02]} 20. Nxe7+ {[%clk 0:02:06]}  Qxe7 {[%clk 0:02:03]} 21. Rd1 {[%clk 0:01:58]}  Rxa7 {[%clk 0:02:02]} 22. Qd4 {[%clk 0:01:57]}  Bc4 {[%clk 0:01:56]} 23. a3 {[%clk 0:01:47]}  Rc8 {[%clk 0:01:40]} 24. Nd2 {[%clk 0:01:37]}  Rxa3 {[%clk 0:01:26]} 25. Rxa3 {[%clk 0:01:34]}  Qxa3 {[%clk 0:01:26]} 26. Nxc4 {[%clk 0:01:35]}  Rxc4 {[%clk 0:01:23]} 27. Qxc4 {[%clk 0:01:34]}  dxc4 {[%clk 0:01:24]} 28. Rd8+ {[%clk 0:01:35]}  Qf8 {[%clk 0:01:24]} 29. Rxf8+ {[%clk 0:01:35]}  Kxf8 {[%clk 0:01:25]} 30. e4 {[%clk 0:01:32]}  Ke7 {[%clk 0:01:19]} 31. Kf2 {[%clk 0:01:33]}  Kd7 {[%clk 0:01:20]} 32. Ke3 {[%clk 0:01:34]}  Kc6 {[%clk 0:01:20]} 33. Kd4 {[%clk 0:01:35]}  Kb5 {[%clk 0:01:20]} 34. h3 {[%clk 0:01:25]}  h5 {[%clk 0:01:14]} 35. h4 {[%clk 0:01:24]}  g5 {[%clk 0:00:57]} 36. hxg5 {[%clk 0:01:17]}  h4 {[%clk 0:00:57]} 37. Ke3 {[%clk 0:00:59]}  Ka4 {[%clk 0:00:57]} 38. Kd4 {[%clk 0:00:21]}  Kb3 {[%clk 0:00:57]} 39. Kc5 {[%clk 0:00:22]}  Kxc3 {[%clk 0:00:57]} 40. Kd6 {[%clk 0:00:23]}  Kd4 {[%clk 0:00:54]} 41. Ke7 {[%clk 0:00:21]}  c3 {[%clk 0:00:54]} 42. Kxf7 {[%clk 0:00:22]}  c2 {[%clk 0:00:55]} 43. g6 {[%clk 0:00:23]}  c1=Q {[%clk 0:00:54]} 44. g7 {[%clk 0:00:24]}  Qc7+ {[%clk 0:00:46]} 45. Kf6 {[%clk 0:00:22]}  Qxe5+ {[%clk 0:00:45]} 46. Kf7 {[%clk 0:00:23]}  Qf4+ {[%clk 0:00:39]} 47. Ke7 {[%clk 0:00:18]}  Qg5+ {[%clk 0:00:38]} 48. Kf7 {[%clk 0:00:18]}  Qxg2 {[%clk 0:00:37]} 49. g8=Q {[%clk 0:00:17]}  Qxg8+ {[%clk 0:00:37]} 50. Kxg8 {[%clk 0:00:18]}  Kxe4 {[%clk 0:00:37]} 0-1


[Site "https://www.chess.com"]

[Event "Titled Tuesday Blitz May 23 Early 2023"]
[White "Bruedigam, Martin"]
[Black "Marcziter, Dmitrii"]
[WhiteFideId "24608033"]
[BlackFideId "13900765"]
[WhiteElo "2331"]
[BlackElo "2162"]
[Result "0-1"]
[Round "09"]
[TimeControl "180+2"]
[Date "2023.05.23"]
[WhiteClock "0:00:00"]
[BlackClock "0:00:23"]

1. d4 {[%clk 0:03:00]}  Nf6 {[%clk 0:02:59]} 2. c4 {[%clk 0:03:00]}  g6 {[%clk 0:02:56]} 3. f3 {[%clk 0:03:00]}  Bg7 {[%clk 0:02:57]} 4. e4 {[%clk 0:03:00]}  d6 {[%clk 0:02:58]} 5. Nc3 {[%clk 0:03:00]}  O-O {[%clk 0:02:59]} 6. Be3 {[%clk 0:03:01]}  Na6 {[%clk 0:02:57]} 7. Nge2 {[%clk 0:02:52]}  c5 {[%clk 0:02:57]} 8. d5 {[%clk 0:02:52]}  e6 {[%clk 0:02:57]} 9. Ng3 {[%clk 0:02:48]}  exd5 {[%clk 0:02:56]} 10. cxd5 {[%clk 0:02:47]}  Nc7 {[%clk 0:02:56]} 11. Be2 {[%clk 0:02:42]}  Re8 {[%clk 0:02:55]} 12. O-O {[%clk 0:02:39]}  h5 {[%clk 0:02:53]} 13. h3 {[%clk 0:02:31]}  h4 {[%clk 0:02:51]} 14. Nh1 {[%clk 0:02:30]}  Nh7 {[%clk 0:02:36]} 15. Nf2 {[%clk 0:02:04]}  Rb8 {[%clk 0:02:31]} 16. a4 {[%clk 0:02:03]}  b6 {[%clk 0:02:30]} 17. Qd2 {[%clk 0:01:59]}  a6 {[%clk 0:02:28]} 18. Rab1 {[%clk 0:01:46]}  b5 {[%clk 0:02:28]} 19. axb5 {[%clk 0:01:46]}  Nxb5 {[%clk 0:02:28]} 20. Bh6 {[%clk 0:01:19]}  Bh8 {[%clk 0:02:23]} 21. Ra1 {[%clk 0:01:05]}  Nd4 {[%clk 0:02:19]} 22. Bc4 {[%clk 0:01:05]}  a5 {[%clk 0:02:05]} 23. Ra2 {[%clk 0:01:02]}  Rb4 {[%clk 0:02:04]} 24. Qd3 {[%clk 0:00:49]}  Bd7 {[%clk 0:02:00]} 25. Bd2 {[%clk 0:00:45]}  Qb6 {[%clk 0:01:51]} 26. Rb1 {[%clk 0:00:29]}  f5 {[%clk 0:01:39]} 27. Kh1 {[%clk 0:00:20]}  a4 {[%clk 0:01:37]} 28. Bf4 {[%clk 0:00:12]}  Rb8 {[%clk 0:01:19]} 29. exf5 {[%clk 0:00:11]}  gxf5 {[%clk 0:01:18]} 30. Be3 {[%clk 0:00:07]}  a3 {[%clk 0:01:13]} 31. Rxa3 {[%clk 0:00:06]}  Rxb2 {[%clk 0:01:12]} 32. Rxb2 {[%clk 0:00:06]}  Qxb2 {[%clk 0:01:13]} 33. Ra2 {[%clk 0:00:06]}  Qb4 {[%clk 0:01:06]} 34. Ba6 {[%clk 0:00:03]}  Bf6 {[%clk 0:00:54]} 35. Kh2 {[%clk 0:00:04]}  Ra8 {[%clk 0:00:50]} 36. Bc4 {[%clk 0:00:02]}  Rxa2 {[%clk 0:00:48]} 37. Bxa2 {[%clk 0:00:03]}  Qb8 {[%clk 0:00:42]} 38. Bf4 {[%clk 0:00:03]}  Qf8 {[%clk 0:00:40]} 39. Nb5 {[%clk 0:00:02]}  Bxb5 {[%clk 0:00:37]} 40. Qb1 {[%clk 0:00:02]}  Qe7 {[%clk 0:00:31]} 41. Nd3 {[%clk 0:00:02]}  Bxd3 {[%clk 0:00:29]} 42. Qxd3 {[%clk 0:00:03]}  Be5 {[%clk 0:00:28]} 43. Bxe5 {[%clk 0:00:03]}  Qxe5+ {[%clk 0:00:28]} 44. Kh1 {[%clk 0:00:03]}  Ne2 {[%clk 0:00:25]} 45. Bc4 {[%clk 0:00:00]}  Qa1+ {[%clk 0:00:23]} 0-1


[Site "https://www.chess.com"]

[Event "Titled Tuesday Blitz May 23 Early 2023"]
[White "Ezat, Mohamed"]
[Black "Klepikov, Nikita"]
[WhiteFideId "10600906"]
[BlackFideId "24145220"]
[WhiteElo "2386"]
[BlackElo "2025"]
[Result "1-0"]
[Round "09"]
[TimeControl "180+2"]
[Date "2023.05.23"]
[WhiteClock "0:00:26"]
[BlackClock "0:00:04"]

1. d4 {[%clk 0:03:00]}  Nf6 {[%clk 0:02:59]} 2. Nf3 {[%clk 0:02:58]}  d6 {[%clk 0:02:57]} 3. Nbd2 {[%clk 0:02:51]}  g6 {[%clk 0:02:50]} 4. e4 {[%clk 0:02:50]}  Bg7 {[%clk 0:02:50]} 5. Bc4 {[%clk 0:02:50]}  O-O {[%clk 0:02:47]} 6. Qe2 {[%clk 0:02:47]}  Nbd7 {[%clk 0:02:44]} 7. e5 {[%clk 0:02:42]}  dxe5 {[%clk 0:02:33]} 8. dxe5 {[%clk 0:02:42]}  Ng4 {[%clk 0:02:15]} 9. e6 {[%clk 0:02:36]}  Nde5 {[%clk 0:02:13]} 10. exf7+ {[%clk 0:02:28]}  Nxf7 {[%clk 0:02:11]} 11. h3 {[%clk 0:02:08]}  Nh6 {[%clk 0:02:05]} 12. Ne4 {[%clk 0:02:03]}  e5 {[%clk 0:01:58]} 13. Bg5 {[%clk 0:01:53]}  Qe8 {[%clk 0:01:48]} 14. Bxh6 {[%clk 0:01:52]}  Be6 {[%clk 0:01:41]} 15. Bxg7 {[%clk 0:01:50]}  Kxg7 {[%clk 0:01:40]} 16. O-O {[%clk 0:01:48]}  Rd8 {[%clk 0:01:38]} 17. Rad1 {[%clk 0:01:47]}  h6 {[%clk 0:01:36]} 18. Bxe6 {[%clk 0:01:36]}  Qxe6 {[%clk 0:01:36]} 19. Qb5 {[%clk 0:01:32]}  b6 {[%clk 0:01:31]} 20. Qb3 {[%clk 0:01:26]}  Qf5 {[%clk 0:01:28]} 21. Ng3 {[%clk 0:01:21]}  Qf6 {[%clk 0:01:24]} 22. Qa4 {[%clk 0:01:15]}  a5 {[%clk 0:01:23]} 23. Qe4 {[%clk 0:01:09]}  Rde8 {[%clk 0:01:17]} 24. Rd7 {[%clk 0:01:06]}  Kg8 {[%clk 0:01:09]} 25. Rxc7 {[%clk 0:01:03]}  Nd6 {[%clk 0:01:07]} 26. Qd5+ {[%clk 0:01:03]}  Kh8 {[%clk 0:01:07]} 27. Ne4 {[%clk 0:01:02]}  Nxe4 {[%clk 0:01:06]} 28. Qxe4 {[%clk 0:01:01]}  Re6 {[%clk 0:01:03]} 29. Rd1 {[%clk 0:01:00]}  Rf7 {[%clk 0:00:59]} 30. Rxf7 {[%clk 0:00:57]}  Qxf7 {[%clk 0:01:00]} 31. Nxe5 {[%clk 0:00:56]}  Qe8 {[%clk 0:00:54]} 32. f4 {[%clk 0:00:53]}  Kg7 {[%clk 0:00:51]} 33. Qd4 {[%clk 0:00:49]}  Kg8 {[%clk 0:00:45]} 34. Qd5 {[%clk 0:00:45]}  Kh8 {[%clk 0:00:41]} 35. Qb7 {[%clk 0:00:42]}  Rf6 {[%clk 0:00:25]} 36. Rd7 {[%clk 0:00:39]}  Qf8 {[%clk 0:00:14]} 37. Qc7 {[%clk 0:00:29]}  Kg8 {[%clk 0:00:04]} 38. Rd8 {[%clk 0:00:26]} 1-0


[Site "https://www.chess.com"]

[Event "Titled Tuesday Blitz May 23 Early 2023"]
[White "Andreev, Konstantin"]
[Black "Schnaider, Ilan"]
[WhiteFideId "24239305"]
[BlackFideId "169013"]
[WhiteElo "2106"]
[BlackElo "2224"]
[Result "1-0"]
[Round "09"]
[TimeControl "180+2"]
[Date "2023.05.23"]
[WhiteClock "0:01:19"]
[BlackClock "0:00:01"]

1. e4 {[%clk 0:03:00]}  c5 {[%clk 0:02:57]} 2. Nf3 {[%clk 0:03:00]}  d6 {[%clk 0:02:56]} 3. d4 {[%clk 0:03:01]}  cxd4 {[%clk 0:02:57]} 4. Nxd4 {[%clk 0:03:01]}  Nf6 {[%clk 0:02:55]} 5. Nc3 {[%clk 0:03:00]}  a6 {[%clk 0:02:55]} 6. h4 {[%clk 0:03:00]}  e5 {[%clk 0:02:52]} 7. Nb3 {[%clk 0:03:00]}  Be7 {[%clk 0:02:47]} 8. Bg5 {[%clk 0:03:00]}  Be6 {[%clk 0:02:46]} 9. Bxf6 {[%clk 0:03:00]}  Bxf6 {[%clk 0:02:47]} 10. g3 {[%clk 0:03:01]}  Nc6 {[%clk 0:02:45]} 11. Qd3 {[%clk 0:03:01]}  Rc8 {[%clk 0:02:41]} 12. O-O-O {[%clk 0:03:01]}  Be7 {[%clk 0:02:32]} 13. Kb1 {[%clk 0:02:59]}  b5 {[%clk 0:02:28]} 14. f4 {[%clk 0:02:58]}  Bc4 {[%clk 0:02:24]} 15. Qf3 {[%clk 0:02:57]}  Qb6 {[%clk 0:02:22]} 16. Ka1 {[%clk 0:02:28]}  Bxb3 {[%clk 0:02:06]} 17. cxb3 {[%clk 0:02:25]}  Nd4 {[%clk 0:02:06]} 18. Qd3 {[%clk 0:02:19]}  Qa5 {[%clk 0:02:05]} 19. Kb1 {[%clk 0:02:16]}  O-O {[%clk 0:01:53]} 20. f5 {[%clk 0:02:11]}  Bd8 {[%clk 0:00:55]} 21. g4 {[%clk 0:01:59]}  Qb4 {[%clk 0:00:42]} 22. Qg3 {[%clk 0:01:51]}  Ba5 {[%clk 0:00:35]} 23. Nd5 {[%clk 0:01:46]}  Qc5 {[%clk 0:00:33]} 24. Bd3 {[%clk 0:01:44]}  Rfe8 {[%clk 0:00:23]} 25. g5 {[%clk 0:01:42]}  Kh8 {[%clk 0:00:16]} 26. f6 {[%clk 0:01:42]}  g6 {[%clk 0:00:16]} 27. h5 {[%clk 0:01:40]}  Ne2 {[%clk 0:00:16]} 28. Qh4 {[%clk 0:01:34]}  Be1 {[%clk 0:00:05]} 29. Qxe1 {[%clk 0:01:29]}  Nf4 {[%clk 0:00:04]} 30. hxg6 {[%clk 0:01:26]}  Nxg6 {[%clk 0:00:02]} 31. Rxh7+ {[%clk 0:01:20]}  Kxh7 {[%clk 0:00:02]} 32. Qh1+ {[%clk 0:01:20]}  Kg8 {[%clk 0:00:03]} 33. Qh6 {[%clk 0:01:20]}  Nf8 {[%clk 0:00:01]} 34. Qg7# {[%clk 0:01:19]} 1-0


[Site "https://www.chess.com"]